Cogmind - Beta 15 @@@ ROGUE MODE // 2025.06.27 @ 12:15:10 Player: b_ Result: Destroyed by P-70 Sage with High-powered Shock Rifle Performance ------------- Evolutions (6) 3000 Regions Visited (11) 2200 Robots Destroyed (41) 205 Value Destroyed (1697) 1697 Prototype IDs (29) 580 Alien Tech Used (0) 0 Bonus (1947) 1947 TOTAL SCORE: 9629 Bonus ------- High Alert Combat Kills 32 Follower Combat Kills 1115 Registered with UFD 300 Met Optimus in HQ 500 Cogmind --------- Core Integrity 0/1150 Matter 300/300 Energy 146/150 System Corruption 17% Temperature Cool (8) Movement Hovering (66) Location -4/Factory Parts ------- > --- POWER (2) -------- Micro Fission Core > --- PROPULSION (4) --- Antigrav System Combat Gravmag System > --- UTILITY (10) ----- Scrap Suit Experimental Cooling System Enhanced Optical Array Improved Armor Integrity Analyzer Improved Weapon Cycler Hacking Suite System Shield A0-MCA's Component Scanner > --- WEAPON (3) ------- Overtuned Beamcaster > --- INVENTORY (5) ---- Neutrino Core Light Antimatter Reactor Experimental Power Amplifier Overtuned Beamcaster Micro-nuke Launcher Peak State ------------ > --- POWER ------------ Neutrino Core Micro Fission Core > --- PROPULSION ------- Antigrav System Combat Gravmag System Combat Linear Gravjet > --- UTILITY ---------- Scrap Suit Experimental Power Amplifier Experimental Cooling System Enhanced Optical Array Improved Armor Integrity Analyzer Improved Weapon Cycler Hacking Suite System Shield A0-MCA's Component Scanner > --- WEAPON ----------- Plasma Rifle Overtuned Beamcaster Overtuned Beamcaster > --- INVENTORY -------- Light Nuclear Core Advanced Transmission Jammer Advanced Transmission Jammer Backup Laser III Micro-nuke Launcher [Rating: 110] Favorites ----------- Power Light Ion Engine Engine Light Ion Engine Power Core Micro Nuclear Core Reactor Light Antimatter Reactor Propulsion Armored Treads Treads Armored Treads Wheel Wheel Hover Unit Backup Propulsion III Flight Unit Nuclear Pulse Thruster Utility Structural Scanner Device Structural Scanner Storage High-capacity Storage Unit Processor A0-MCA's Component Scanner Hackware System Shield Protection Hardened Light Armor Plating Weapon Heavy Flail Energy Gun Backup Laser III Energy Cannon Disruptor Cannon Ballistic Gun Light Assault Rifle Ballistic Cannon Enhanced Gauss Cannon Launcher Rocket Launcher Impact Weapon Heavy Flail Slashing Weapon Great Axe Piercing Weapon Spear Build | -11 -10 -10 -10 -7 -5 -5 -5 -5 -4 -4 -4 ------- Run | Yrd Mat Min Sub Scr Fac Was Fac Ext Fac Was Fac Slots Evolved 12 | . . . . . 10 . . . 2 . . Power 1 | . . . . . 1 . . . . . . Propulsion 2 | . . . . . 2 . . . . . . Utility 8 | . . . . . 6 . . . 2 . . Weapon 1 | . . . . . 1 . . . . . . Parts Attached 97 | 7 6 1 2 5 20 . 5 7 8 8 28 Power 17 | 2 . . . . 4 . . 3 . . 8 Engine 10 | 2 . . . . 3 . . 2 . . 3 Core 6 | . . . . . 1 . . 1 . . 4 Reactor 1 | . . . . . . . . . . . 1 Propulsion 19 | 2 2 . 1 1 3 . 1 . 3 3 3 Treads 4 | . 2 . 1 1 . . . . . . . Leg . | . . . . . . . . . . . . Wheel 2 | 2 . . . . . . . . . . . Hover 7 | . . . . . . . . . 2 2 3 Flight 6 | . . . . . 3 . 1 . 1 1 . Utility 42 | 1 3 . . 2 11 . 4 2 4 5 10 Device 23 | . 2 . . . 6 . 3 . 2 3 7 Storage 3 | 1 1 . . 1 . . . . . . . Processor 9 | . . . . 1 3 . 1 1 2 . 1 Hackware 2 | . . . . . . . . . . . 2 Protection 5 | . . . . . 2 . . 1 . 2 . Artifact . | . . . . . . . . . . . . Weapon 19 | 2 1 1 1 2 2 . . 2 1 . 7 Energy Gun 4 | . . . . . 1 . . . . . 3 Energy Cannon 1 | . . . . . . . . . . . 1 Ballistic Gun 5 | 2 1 . . . . . . . 1 . 1 Ballistic Cannon 1 | . . . . . . . . . . . 1 Launcher 3 | . . 1 . . . . . 1 . . 1 Special Weapon . | . . . . . . . . . . . . Impact Weapon 2 | . . . 1 1 . . . . . . . Slashing Weapon 2 | . . . . 1 . . . 1 . . . Piercing Weapon 1 | . . . . . 1 . . . . . . Special Melee Weapon . | . . . . . . . . . . . . Unidentified Prototypes . | . . . . . . . . . . . . Parts Lost 47 | . 5 . . . 10 . 3 7 6 1 15 Power 10 | . 1 . . . 4 . . 2 . . 3 Propulsion 15 | . 2 . . . 2 . 1 2 3 . 5 Utility 15 | . 1 . . . 2 . 2 2 3 1 4 Weapon 7 | . 1 . . . 2 . . 1 . . 3 Highest Loss Streak 10 | . 3 . . . 10 . 2 3 3 1 10 To Critical Strikes . | . . . . . . . . . . . . Average Backups 13 | 1 7 14 15 19 11 4 4 4 4 4 4 Power 1 | . . 1 2 2 1 . . . . . . Propulsion 2 | 1 . 1 2 3 2 . . . . . . Utility 6 | . 3 5 6 9 5 2 2 3 3 3 2 Weapon 2 | . 2 5 5 3 2 1 2 1 1 . . Tool/Special . | . . . . . . . . . . . . Unused Backups 16 | . 1 1 . 9 2 . . 1 1 . 1 Power 2 | . . . . 1 . . . . 1 . . Propulsion 1 | . . . . 1 . . . . . . . Utility 9 | . 1 1 . 5 1 . . . . . 1 Weapon 4 | . . . . 2 1 . . 1 . . . Tool/Special . | . . . . . . . . . . . . Average Slot Usage (%) 89 | . 94 100 100 100 80 76 70 52 42 72 90 Engine 10 | . 13 14 14 14 6 5 3 4 . 4 2 Core 1 | . . . . . 2 . . . 3 3 5 Treads 18 | . 21 28 28 28 9 . . . . . . Hover 2 | . . . . . . . . . 1 12 18 Flight 1 | . . . . . 1 17 15 11 4 . . Device 10 | . 11 14 14 11 10 23 24 3 2 4 15 Storage 9 | . 14 14 14 14 4 . . . . . . Processor 9 | . . . . 2 16 23 19 24 25 31 19 Protection 1 | . . . . . 8 . . . 1 5 5 Energy Gun 1 | . . . . . 3 . . . . 7 7 Ballistic Gun 7 | . 26 22 22 6 . . . . 2 . . Impact Weapon 7 | . . . 5 14 4 . . . . . . Slashing Weapon 4 | . . . . 7 4 . . 3 . . . Peak Build Rating 110 | 6 8 10 13 30 66 63 67 70 62 90 110 Average Rating 33 | 4 7 9 11 21 49 63 60 45 48 66 95 On Entrance 35 | . 6 7 10 13 30 63 63 67 39 39 90 Naked Turns . | . . . . . . . . . . . . Heaviest Build 78 | 12 26 28 28 51 78 13 13 16 16 36 51 Greatest Support 50 | 26 40 40 40 40 40 15 16 16 21 42 50 Greatest Overweight (x) 2 | 2 . . . 1 1 . 1 2 2 2 1 Average Overweight (x) . | . . . . . . . . . . . . Largest Inventory Capacity 20 | 8 15 15 15 20 20 5 5 5 5 5 5 Average Capacity 14 | 7 10 15 15 19 18 5 5 5 5 5 5 Most Carried 20 | 3 12 15 15 20 20 5 5 5 5 5 5 Average Carried 13 | 1 7 14 15 19 12 4 4 4 4 4 4 Final Capacity 20 | 8 15 15 15 20 5 5 5 5 5 5 5 Final Carried 20 | 3 12 15 15 20 5 5 5 5 5 5 5 Class Distribution -------------------- 80% | Mutant 4% | Tank 3% | Derelict-Mutant Dominant Class ---------------- Mutant | -10/Materials Mutant | -10/Mines Mutant | -10/Subcaves Mutant | -7/Scraptown Derelict-Mutant | -5/Factory Derelict-Sprinter | -5/Waste Mutant | -5/Factory Mutant | -5/Extension Mutant | -4/Factory Mutant | -4/Waste Scavenger-Gunner | -4/Factory Resources | -11 -10 -10 -10 -7 -5 -5 -5 -5 -4 -4 -4 ----------- Run | Yrd Mat Min Sub Scr Fac Was Fac Ext Fac Was Fac Matter Collected 1867 | 187 266 88 6 64 249 . . 247 . 352 408 Remotely . | . . . . . . . . . . . . Salvage Created 1631 | . 369 134 . . 372 . . 172 57 . 527 Parts 76 | . 26 8 . . 5 . . 8 7 . 22 Haulers Intercepted 2 | . . . . . 1 . . 1 . . . Recyclers Shooed . | . . . . . . . . . . . . Parts Field Recycled . | . . . . . . . . . . . . Retrieved Matter . | . . . . . . . . . . . . Parts Self-Destructed . | . . . . . . . . . . . . Prevented . | . . . . . . . . . . . . Kills | -11 -10 -10 -10 -7 -5 -5 -5 -5 -4 -4 -4 ------- Run | Yrd Mat Min Sub Scr Fac Was Fac Ext Fac Was Fac Combat Hostiles Destroyed 35 | . 11 3 . . 6 . . 4 3 . 8 Melee 2 | . . . . . 2 . . . . . . Guns 17 | . 11 3 . . . . . . . . 3 AOE 10 | . . . . . . . . 4 3 . 3 Classes Destroyed 8 | . 2 1 . . 2 . . 1 . . 2 Worker 2 | . . 1 . . . . . . 1 . . Hauler 2 | . . . . . 1 . . 1 . . . Operator 2 | . . . . . . . . 1 . . 1 Swarmer 11 | . 3 . . . . . . 4 3 . 1 Grunt 19 | . 8 3 . . 4 . . . . . 4 Sentry 1 | . . . . . . . . . . . 1 Hunter 1 | . . . . . . . . . . . 1 Programmer 3 | . . . . . 2 . . . . . 1 Best Kill Streak 5 | . 3 3 . . 2 . . 5 3 . 2 Combat Bots Only 4 | . 3 2 . . 2 . . 4 3 . 2 Max Kills in Single Turn 2 | . 1 1 . . 1 . . 2 2 . 2 Gunslinging . | . . . . . . . . . . . . Exploded 2 | . . . . . . . . 2 2 . 2 Melee 1 | . . . . . 1 . . . . . . Uniques/NPCs Destroyed . | . . . . . . . . . . . . Combat | -11 -10 -10 -10 -7 -5 -5 -5 -5 -4 -4 -4 -------- Run | Yrd Mat Min Sub Scr Fac Was Fac Ext Fac Was Fac Hostile Shots Fired 600 | . 74 17 2 . 84 . 18 69 137 1 198 Missed 249 | . 19 4 2 . 16 . 10 35 85 . 78 Hits 351 | . 55 13 . . 68 . 8 34 52 1 120 Melee 1 | . . . . . . . . . . 1 . Projectile 350 | . 55 13 . . 68 . 8 34 52 . 120 Critical Strikes 15 | . 2 . . . 5 . . . 1 . 7 Actively Blocked 1 | . . . . . 1 . . . . . . Part Disruptions 1 | . . . . . . . . . . . 1 Damage Taken 6468 | . 635 157 . . 1349 . 149 650 1180 48 2300 Core 1780 | . 165 11 . . 162 . 53 226 613 48 502 Absorbed by Shields 38 | . . . . . . . . 38 . . . Redirected to Shielding 29 | . . . . . 29 . . . . . . Regen/Repaired (Parts) 441 | . 180 . . . . . . . . 176 85 Core Remaining (%) 61 | 100 . . . 29 . . . 55 . . . Volleys Fired 129 | . 69 11 . . 2 . . 7 13 . 27 Largest 3 | . 2 2 . . 1 . . 1 1 . 3 Hottest 275 | . 40 50 . . 56 . . 33 35 . 275 Shots Fired 244 | . 138 22 . . 2 . . 7 13 . 62 Gun 216 | . 138 21 . . 2 . . . 7 . 48 Cannon 9 | . . . . . . . . . . . 9 Launcher 19 | . . 1 . . . . . 7 6 . 5 Special . | . . . . . . . . . . . . Kinetic 170 | . 138 21 . . . . . . 7 . 4 Thermal 46 | . . . . . 2 . . . . . 44 Explosive 19 | . . 1 . . . . . 7 6 . 5 Electromagnetic 9 | . . . . . . . . . . . 9 Robot Hit Streak 10 | . 10 7 . . 1 . . 1 . . 7 Robot Miss Streak 7 | . 4 3 . . 1 . . 4 . . 7 Penetration Max 1 | . . . . . . . . . . . 1 Secondary Targets 1 | . 1 . . . . . . . . . . Max Gunslinging Chain 1 | . 1 . . . . . . . . . . Shots Hit Robots 161 | . 84 14 . . 24 . . 9 . . 30 Core Hits 79 | . 28 10 . . 3 . . 9 7 . 22 Critical Kills 1 | . . . . . . . . . . . 1 Critical Parts Destroyed 5 | . . . . . 4 . . . . . 1 Critical Strikes 8 | . . . . . 4 . . 1 . . 3 Burn 1 | . . . . . . . . . . . 1 Destroy 2 | . . . . . . . . . . . 2 Smash 4 | . . . . . 4 . . . . . . Impale 1 | . . . . . . . . 1 . . . Melee Attacks 49 | . . . 1 . 36 . 3 9 . . . Impact 35 | . . . 1 . 34 . . . . . . Slashing 8 | . . . . . 2 . . 6 . . . Piercing 6 | . . . . . . . 3 3 . . . Sneak Attacks 3 | . . . . . 1 . . 2 . . . Combat Hostiles 1 | . . . . . . . . 1 . . . Follow-up Attacks . | . . . . . . . . . . . . Damage Inflicted 4710 | . 647 200 . . 1217 . . 891 461 . 1294 Guns 1262 | . 647 125 . . 15 . . . . . 475 Cannons 30 | . . . . . . . . . . . 30 Explosions 1704 | . . 66 . . . . . 412 461 . 765 Melee 1681 | . . . . . 1202 . . 479 . . . Ramming 33 | . . 9 . . . . . . . . 24 Kinetic 797 | . 647 125 . . . . . . . . 25 Thermal 777 | . . . . . 15 . . . . . 762 Explosive 1392 | . . 66 . . . . . 412 461 . 453 Electromagnetic 30 | . . . . . . . . . . . 30 Impact 1202 | . . . . . 1202 . . . . . . Slashing 396 | . . . . . . . . 396 . . . Piercing 83 | . . . . . . . . 83 . . . Highest Corruption 17 | . . . . . 10 16 16 9 1 1 17 Average Corruption 6 | . . . . . 7 13 11 7 1 1 7 Corruption Purged 10 | . . . . . 1 . 7 2 . . . Corruption Blocked . | . . . . . . . . . . . . Effects 63 | . . . . . 2 3 7 22 1 2 26 Message Errors 12 | . . . . . . 1 2 5 . . 4 Matter Fused 11 | . . . . . 1 . 1 3 1 1 4 Heat Flow Errors 10 | . . . . . 1 1 1 1 . 1 5 Energy Discharges 5 | . . . . . . . 1 3 . . 1 Parts Rejected 2 | . . . . . . . . 2 . . . Data Loss (minor) 6 | . . . . . . . . 5 . . 1 Data Loss (major) 4 | . . . . . . . . 1 . . 3 Misfires 1 | . . . . . . . . . . . 1 Alerts 3 | . . . . . . . . 2 . . 1 Misdirections 7 | . . . . . . 1 2 . . . 4 Weapon Failures 2 | . . . . . . . . . . . 2 Overload Shots . | . . . . . . . . . . . . Overflow Damage 542 | . . . . . 398 . . 115 7 . 22 Projectiles . | . . . . . . . . . . . . Explosions 75 | . . . . . . . . 46 7 . 22 Melee 467 | . . . . . 398 . . 69 . . . Knockbacks 7 | . . . . . 6 . . . . . 1 Impact 7 | . . . . . 6 . . . . . 1 Kinetic . | . . . . . . . . . . . . Secondary . | . . . . . . . . . . . . Self-Inflicted Damage 90 | . . . . . . . . . 79 . 11 Shots 4 | . . . . . . . . . 4 . . Rammed 5 | . . 1 . . . . . . . . 4 Targets Rammed 5 | . . 1 . . . . . . . . 4 Kicked . | . . . . . . . . . . . . Crushed . | . . . . . . . . . . . . Highest Temperature 382 | . 33 18 . . 157 168 70 225 . 284 382 Average Temperature 87 | . 10 9 . . 87 90 52 119 . 142 110 Received Heat Transfer 892 | . 312 90 . . 126 . 18 94 123 . 129 Effects 3 | . . . . . . . . . . . 3 Shutdowns 1 | . . . . . . . . . . . 1 Interference 2 | . . . . . . . . . . . 2 Siege Activations . | . . . . . . . . . . . . Martial Activations . | . . . . . . . . . . . . Shielding Activations . | . . . . . . . . . . . . Robots Disrupted . | . . . . . . . . . . . . Combat Hostiles . | . . . . . . . . . . . . Robots Corrupted 5 | . . . . . 5 . . . . . . Combat Hostiles 4 | . . . . . 4 . . . . . . Parts Fried 5 | . . . . . 5 . . . . . . Impact Corruptions 15 | . . . . . 15 . . . . . . Robots Melted 2 | . . . . . . . . . . . 2 Combat Hostiles 2 | . . . . . . . . . . . 2 Parts Melted 4 | . . . . . . . . . . . 4 Heat Transferred 1320 | . . . . . 37 . . . . . 1283 Parts Sabotaged . | . . . . . . . . . . . . Parts Stolen . | . . . . . . . . . . . . Parts Stripped . | . . . . . . . . . . . . Power Chain Reactions 1 | . . . . . . . . . . . 1 Alert | -11 -10 -10 -10 -7 -5 -5 -5 -5 -4 -4 -4 ------- Run | Yrd Mat Min Sub Scr Fac Was Fac Ext Fac Was Fac Maximum Alert Level 2 | . . . . . . . . 1 2 1 2 Low Security (%) 86 | 100 100 100 . . 100 100 100 99 37 94 63 Level 1 7 | . . . . . . . . . 39 5 15 Level 2 6 | . . . . . . . . . 23 . 20 Level 3 . | . . . . . . . . . . . . Level 4 . | . . . . . . . . . . . . Level 5 . | . . . . . . . . . . . . High Security . | . . . . . . . . . . . . Max Security . | . . . . . . . . . . . . Peak Influence 607 | . 120 50 . . 49 2 134 213 607 209 590 Initial 209 | . . . . . . 2 . 65 53 209 25 Average 96 | . 30 9 . . 11 . 28 85 287 127 183 Influence Increases 3781 | . 323 80 . . 207 . 166 815 944 48 1198 Destroy 0b10 Robot/C 1460 | . 220 60 . . 120 . . 280 240 . 540 Destroy 0b10 Robot/NC 60 | . . 5 . . 5 . . 25 10 . 15 Destroy Leader 260 | . 50 10 . . 22 . . 36 50 . 92 Allied During Kill 317 | . . . . . . . . 74 35 . 208 Successful Hack 97 | . 23 . . . . . 10 11 39 . 14 Disable Machine 180 | . . . . . . . . . 75 . 105 Destroy Structure 477 | . . 5 . . . . 6 44 180 48 194 Partial Spotted 135 | . . . . . . . . 105 15 . 15 Lose Combat Pursuer 795 | . 30 . . . 60 . 150 240 300 . 15 Influence Decreases 3261 | . 323 80 . . 200 7 32 840 454 610 715 Entered New Map 532 | . . . . . . 5 . 69 56 390 12 Time Decay 1449 | . 273 80 . . 120 2 30 278 198 190 278 Lost Part 385 | . 50 . . . 80 . 2 43 60 10 140 Lost Ally 455 | . . . . . . . . 150 140 20 145 Purge Threat 440 | . . . . . . . . 300 . . 140 Squads Dispatched 28 | . 1 1 . . 3 . 3 4 7 . 9 Investigation 12 | . . 1 . . 1 . 1 2 5 . 2 Extermination 4 | . . . . . 1 . . . 1 . 2 Reinforcement 8 | . 1 . . . 1 . 2 2 1 . 1 Assault . | . . . . . . . . . . . . Garrison 4 | . . . . . . . . . . . 4 Intercept . | . . . . . . . . . . . . Searches Triggered . | . . . . . . . . . . . . Construction Impeded 1 | . . . . . . . . 1 . . . Haulers Reinforced 1 | . . . . . . . . . . . 1 Active Scanning Responses . | . . . . . . . . . . . . Cargo Convoy Interrupts . | . . . . . . . . . . . . Stealth | -11 -10 -10 -10 -7 -5 -5 -5 -5 -4 -4 -4 --------- Run | Yrd Mat Min Sub Scr Fac Was Fac Ext Fac Was Fac Distress Signals 5 | . 1 . . . 1 . . 3 . . . Communications Jammed 12 | . . . . . . . . . . . 12 Distress Signals 12 | . . . . . . . . . . . 12 Times Spotted 180 | . 20 3 1 . 13 5 13 40 50 6 29 Peak Tracking Total 12 | . 6 2 1 . 7 5 8 11 12 6 7 Tactical Retreats 19 | . 1 . . . 2 . 2 4 8 1 1 Traps | -11 -10 -10 -10 -7 -5 -5 -5 -5 -4 -4 -4 ------- Run | Yrd Mat Min Sub Scr Fac Was Fac Ext Fac Was Fac Traps Triggered 8 | . . . . . 1 . 1 3 2 . 1 Indirectly . | . . . . . . . . . . . . Trap Hack Attempts . | . . . . . . . . . . . . Triggered . | . . . . . . . . . . . . Disarmed . | . . . . . . . . . . . . Reprogrammed 4 | . 4 . . . . . . . . . . Reused . | . . . . . . . . . . . . Traps Extracted . | . . . . . . . . . . . . Installed . | . . . . . . . . . . . . Triggered . | . . . . . . . . . . . . Machines | -11 -10 -10 -10 -7 -5 -5 -5 -5 -4 -4 -4 ---------- Run | Yrd Mat Min Sub Scr Fac Was Fac Ext Fac Was Fac Machines Disabled 12 | . . . . . . . . . 5 . 7 Max in Single Turn 1 | . . . . . . . . . 1 . 1 Machines Repaired . | . . . . . . . . . . . . Machines Dismantled . | . . . . . . . . . . . . Machines Sabotaged . | . . . . . . . . . . . . Overloaded Fab Kills . | . . . . . . . . . . . . Hacking | -11 -10 -10 -10 -7 -5 -5 -5 -5 -4 -4 -4 --------- Run | Yrd Mat Min Sub Scr Fac Was Fac Ext Fac Was Fac Machines Accessed 47 | . 7 1 1 4 2 . 5 12 7 . 8 Terminals 28 | . 5 . . . 1 . 4 11 3 . 4 Fabricators 2 | . . . . . 1 . . . . . 1 Repair Stations 2 | . 1 . . . . . . . . . 1 Recycling Units 8 | . 1 . . . . . 1 1 3 . 2 Scanalyzers 1 | . . . . . . . . . 1 . . Garrison Access . | . . . . . . . . . . . . Total Hacks 110 | . 23 1 4 15 4 . 11 26 14 . 12 Successful 60 | . 15 1 4 15 2 . 3 8 7 . 5 Failed 50 | . 8 . . . 2 . 8 18 7 . 7 Catastrophic 13 | . 2 . . . 1 . 2 4 2 . 2 Database Lockouts . | . . . . . . . . . . . . Manual 23 | . 4 . . . . . 3 9 4 . 3 Terminals 63 | . 15 . . . 2 . 9 24 6 . 7 Fabricators 3 | . . . . . 2 . . . . . 1 Repair Stations 8 | . 7 . . . . . . . . . 1 Recycling Units 12 | . 1 . . . . . 2 2 4 . 3 Scanalyzers 4 | . . . . . . . . . 4 . . Garrison Access . | . . . . . . . . . . . . Terminal Hacks 46 | . 9 1 4 15 1 . 3 8 2 . 3 Record 24 | . . . 4 15 1 . 1 2 1 . . Prototype ID Bank 4 | . 3 . . . . . . 1 . . . Open Door 4 | . . 1 . . . . 1 2 . . . Open DSF 2 | . . . . . . . 1 . . . 1 Branch Access Points 1 | . 1 . . . . . . . . . . Terminal Index 1 | . 1 . . . . . . . . . . Alert Level 1 | . 1 . . . . . . . . . . Unreport Threat 3 | . . . . . . . . 2 . . 1 Locate Traps 4 | . 1 . . . . . . 1 1 . 1 Reprogram Traps 1 | . 1 . . . . . . . . . . Hauler Manifests 1 | . 1 . . . . . . . . . . Fabricator Hacks 2 | . . . . . 1 . . . . . 1 Network Status 2 | . . . . . 1 . . . . . 1 Repair Station Hacks 6 | . 6 . . . . . . . . . . Scan Component 3 | . 3 . . . . . . . . . . Repair 3 | . 3 . . . . . . . . . . Recycling Unit Hacks 1 | . . . . . . . . . 1 . . Retrieve Components 1 | . . . . . . . . . 1 . . Scanalyzer 1 | . . . . . . . . . 1 . . Insert Component 1 | . . . . . . . . . 1 . . Garrison Access Hacks . | . . . . . . . . . . . . Unauthorized Hacks 4 | . . . . . . . . . 3 . 1 Terminals . | . . . . . . . . . . . . Fabricators . | . . . . . . . . . . . . Repair Stations . | . . . . . . . . . . . . Recycling Units 4 | . . . . . . . . . 3 . 1 Fedlink 1 | . . . . . . . . . 1 . . Scrapoids 3 | . . . . . . . . . 2 . 1 Scanalyzers . | . . . . . . . . . . . . Garrison Access . | . . . . . . . . . . . . Data Cores Recovered . | . . . . . . . . . . . . Used . | . . . . . . . . . . . . Hacking Detections 33 | . 7 . . . 2 . 5 10 3 . 6 Full Trace Events 4 | . . . . . 1 . . 1 1 . 1 Feedback Events . | . . . . . . . . . . . . Feedback Blocked . | . . . . . . . . . . . . Robot Schematics Acquired . | . . . . . . . . . . . . Robots Built . | . . . . . . . . . . . . Authchips . | . . . . . . . . . . . . Time . | . . . . . . . . . . . . Total Robot Build Rating . | . . . . . . . . . . . . Part Schematics Acquired . | . . . . . . . . . . . . Parts Built . | . . . . . . . . . . . . Authchips . | . . . . . . . . . . . . Time . | . . . . . . . . . . . . Total Part Build Rating . | . . . . . . . . . . . . Parts Repaired 3 | . 3 . . . . . . . . . . Time 78 | . 78 . . . . . . . . . . Parts Recycled . | . . . . . . . . . . . . Recycled Matter . | . . . . . . . . . . . . Retrieved Matter . | . . . . . . . . . . . . Retrieved Components 1 | . . . . . . . . . 1 . . Parts Scanalyzed 1 | . . . . . . . . . 1 . . Part Schematics Acquired . | . . . . . . . . . . . . Parts Damaged . | . . . . . . . . . . . . Bothacking | -11 -10 -10 -10 -7 -5 -5 -5 -5 -4 -4 -4 ------------ Run | Yrd Mat Min Sub Scr Fac Was Fac Ext Fac Was Fac Used RIF Installer . | . . . . . . . . . . . . Robots Hacked . | . . . . . . . . . . . . Non-combat . | . . . . . . . . . . . . Combat . | . . . . . . . . . . . . Robot Hacks Applied . | . . . . . . . . . . . . Relay Couplers Released . | . . . . . . . . . . . . Fabnet Peak Effective % . | . . . . . . . . . . . . Robots Rewired 7 | . . . . . . . . 7 . . . Allies Hacked . | . . . . . . . . . . . . Hacks Repelled . | . . . . . . . . . . . . Allies | -11 -10 -10 -10 -7 -5 -5 -5 -5 -4 -4 -4 -------- Run | Yrd Mat Min Sub Scr Fac Was Fac Ext Fac Was Fac Total Allies 43 | . . . . . . . . 9 10 19 5 Largest Group 19 | . . . . . . . . 4 5 19 11 Highest-Rated Group 684 | . . . . . . . . 246 235 684 432 Highest-Rated Ally 159 | . . . . . . . . 159 47 50 47 Total Orders . | . . . . . . . . . . . . Ally Attacks 336 | . . . . . . . . 88 89 52 107 Total Damage 11598 | . . . . . . . . 2393 2608 4229 2368 Kills 60 | . . . . . . . . 13 12 13 22 Allies Corrupted 1 | . . . . . . . . . . . 1 Allies Melted 1 | . . . . . . . . . 1 . . Intel | -11 -10 -10 -10 -7 -5 -5 -5 -5 -4 -4 -4 ------- Run | Yrd Mat Min Sub Scr Fac Was Fac Ext Fac Was Fac Active Infowar (turns) 8298 | . 764 394 222 3788 469 46 199 713 408 388 907 Optics 2435 | . . . . . . . 19 713 408 388 907 Sensors 203 | . . . . . . . 82 121 . . . Terrain 159 | . . . . . . . . . . . 159 Structural 5518 | . 764 394 222 3788 350 . . . . . . Decoding 2790 | . . . . . 467 46 199 713 408 388 569 T.N.C. 1373 | . . . . . . . . 160 408 388 417 Triangulation 151 | . . . . . . . 13 138 . . . Jamming 310 | . . . . . . . 1 30 . . 279 Robot Analysis Total . | . . . . . . . . . . . . Derelict Logs Recovered 1 | . . 1 . . . . . . . . . Drone Launches . | . . . . . . . . . . . . Drone Recoveries . | . . . . . . . . . . . . Decoded 0b10 Intel 43 | . . . . . 11 . 5 9 7 1 10 Traps 28 | . . . . . 9 . 2 8 5 . 4 Emergency Access 13 | . . . . . 2 . 2 1 2 . 6 Exits 2 | . . . . . . . 1 . . 1 . Exploration | -11 -10 -10 -10 -7 -5 -5 -5 -5 -4 -4 -4 ------------- Run | Yrd Mat Min Sub Scr Fac Was Fac Ext Fac Was Fac Turns Passed 9497 | 60 914 394 222 4733 513 46 199 713 408 388 907 Spaces Moved 6630 | 49 447 211 128 1888 242 133 519 1020 672 451 870 Core 245 | 8 . . . . . . . 9 127 101 . Treads 2664 | . 304 211 128 1888 133 . . . . . . Legs . | . . . . . . . . . . . . Wheels 184 | 41 143 . . . . . . . . . . Hover 1319 | . . . . . . . . . 99 350 870 Flight 2218 | . . . . . 109 133 519 1011 446 . . Fastest Speed 32 | 50 90 160 160 165 32 32 32 34 37 50 54 Average Speed 122 | 92 137 160 161 248 151 32 33 36 50 62 77 Slowest Speed 250 | 150 160 160 165 250 250 32 94 150 150 150 160 Overloaded Moves . | . . . . . . . . . . . . Propulsion Burnouts . | . . . . . . . . . . . . Robots Hopped 21 | . . . . . . . 3 15 3 . . Potential Cave-ins . | . . . . . . . . . . . . Cave-ins Triggered . | . . . . . . . . . . . . Exploration Rate (%) 48 | 4 88 56 12 95 7 73 19 88 24 96 22 Regions Visited 11 Branch Regions 4 Pre-discovered Areas 4 | . . 1 . 3 . . . . . . . Known Exits Taken 2 | . 1 . . . . . 1 . . . . Unknown Exits Taken 5 | 1 . 1 1 1 . . . 1 . . . Scrap Searched 5 | . . 1 . 4 . . . . . . . Spaces Dug 18 | . . . . . . . 3 1 14 . . Terrain Destroyed 182 | . . 5 . . . . 3 42 69 . 63 Melee 4 | . . . . . . . 3 1 . . . Projectile 3 | . . . . . . . . . 3 . . AOE 175 | . . 5 . . . . . 41 66 . 63 Terrain Rammed . | . . . . . . . . . . . . Walls Destroyed . | . . . . . . . . . . . . Machines Disabled . | . . . . . . . . . . . . Actions | -11 -10 -10 -10 -7 -5 -5 -5 -5 -4 -4 -4 --------- Run | Yrd Mat Min Sub Scr Fac Was Fac Ext Fac Was Fac Total 7696 | 60 635 251 140 1937 344 136 533 1323 726 553 1058 Wait 534 | 3 94 15 10 4 25 . 5 171 23 83 101 Move 6583 | 48 446 210 127 1887 242 132 512 993 666 450 870 Hop 17 | . . . . . . . 3 11 3 . . Pick Up 61 | 2 15 7 . 21 2 2 2 2 2 1 5 Fast Attach 43 | 6 3 . . . 2 . 2 8 6 8 8 Attach 50 | . 5 1 . . 20 . 2 4 5 5 8 Detach 21 | . . . . . 3 . 1 3 5 2 7 Swap 44 | 1 1 3 2 6 9 . 2 . . 2 18 Drop 49 | . 2 3 . 17 5 2 1 5 3 2 9 Fire 129 | . 69 11 . . 2 . . 7 13 . 27 Melee 47 | . . . 1 . 34 . 3 9 . . . Ram 5 | . . . . . . . . . . . 5 Kick . | . . . . . . . . . . . . Crush 1 | . . 1 . . . . . . . . . Escape Stasis 32 | . . . . . . . . 32 . . . Rewire 80 | . . . . 2 . . . 78 . . . Trap . | . . . . . . . . . . . . Miscellaneous . | . . . . . . . . . . . . Route ------- -11/Scrapyard -10/Materials (discovered 3 exits: [*Mat x2] / *Min) -10/Mines (discovered 2 exits: [*Mat] / *Sub) -10/Subcaves -7/Scraptown (discovered 2 exits: *Fac x2) -5/Factory -5/Waste -5/Factory -5/Extension (discovered 2 exits: *Fac / [*Cet]) -4/Factory -4/Waste -4/Factory History --------- Turn | Location | Event 18 | -11/Scrapyard | Discovered new exit (range 15) 61 | -11/Scrapyard | Entered Materials 144 | -10/Materials | Identified exit to Mines 272 | -10/Materials | Lost 3 parts (2n1u) 314 | -10/Materials | Build established: Mutant 335 | -10/Materials | Core integrity fell below 50% 492 | -10/Materials | Discovered new exit (range 10) 652 | -10/Materials | Discovered new exit (range 3) 858 | -10/Materials | Repaired Lgt. Treads 885 | -10/Materials | Repaired Lgt. Treads 913 | -10/Materials | Repaired Lgt. Assault Rifle 975 | -10/Materials | Entered Mines 982 | -10/Mines | Met a Derelict shopkeep closing up shop 1240 | -10/Mines | Received a Rocket Launcher from a helpful Derelict 1324 | -10/Mines | Learned location of Mines (-9) 1335 | -10/Mines | Discovered new exit (range 9) 1345 | -10/Mines | Discovered new exit (range 14) 1369 | -10/Mines | Entered Subcaves 1370 | -10/Subcaves | Approached by a straggling Scientist 1499 | -10/Subcaves | A swath of the cavern ceiling suddenly collapsed 1543 | -10/Subcaves | Scientist uncovered a shortcut to Scraptown 1547 | -10/Subcaves | Shifting Twisted Machinery released Sub. Laser 1564 | -10/Subcaves | Visited Clippyterm 1569 | -10/Subcaves | Learned Research machine intel 1591 | -10/Subcaves | Entered Scraptown 2686 | -7/Scraptown | Discovered new exit (range 7) 2833 | -7/Scraptown | Visited Cyclists 2913 | -7/Scraptown | Visited Awakened 2971 | -7/Scraptown | Heard Great Nut preacher, LISTEN AND RECITE! 3033 | -7/Scraptown | Visited Comm Corps 3146 | -7/Scraptown | Visited Symbiants 3241 | -7/Scraptown | Visited UFD Registry 3241 | -7/Scraptown | Registered with UFD as "Bulletwalker" 3312 | -7/Scraptown | Visited TADAMA 3362 | -7/Scraptown | Visited Junk Repository 3435 | -7/Scraptown | Visited Junk Repository 3554 | -7/Scraptown | Entered Cyclist Reading Room 3564 | -7/Scraptown | Learned location of Zion (-6) 4508 | -7/Scraptown | Visited Derelict Rescue Squad 4526 | -7/Scraptown | Found DRS Beacon 4612 | -7/Scraptown | Visited Botcube Research 4706 | -7/Scraptown | Visited Supply Room 5211 | -7/Scraptown | Visited LU-1G1's Boring Crew 5301 | -7/Scraptown | Visited Scrapoid Pod Storage 5356 | -7/Scraptown | Visited A0-MCA Data Center 5371 | -7/Scraptown | Given a C rating by A0-MCA 5379 | -7/Scraptown | Found A0-MCA's Component Scanner 5434 | -7/Scraptown | Visited Infowarlord's Domain 5685 | -7/Scraptown | Discovered new exit (range 5) 5780 | -7/Scraptown | Visited Scrapoid Research Area 5857 | -7/Scraptown | Visited Science Testing Area 5902 | -7/Scraptown | Visited Scrap Suit Storage 6152 | -7/Scraptown | Met Optimus 6152 | -7/Scraptown | Accepted into 0bPrime 6320 | -7/Scraptown | Civil war broke out across Scraptown 6324 | -7/Scraptown | Entered Factory 6324 | -5/Factory | Evolved 10 slots: Power x1, Propulsion x2, Utility x6, Weapon x1 6660 | -5/Factory | Build established: Derelict-Mutant 6779 | -5/Factory | System corruption reached 10% 6812 | -5/Factory | Lost 10 parts (4p2n2u2w) 6837 | -5/Factory | Sucked down chute 6837 | -5/Factory | Entered Waste 6852 | -5/Waste | EMP discharged 6854 | -5/Waste | Spotted C-40 Crusher 6856 | -5/Waste | Spotted C-40 Crusher 6860 | -5/Waste | Spotted C-40 Crusher 6869 | -5/Waste | Spotted C-40 Crusher 6876 | -5/Waste | Spotted C-40 Crusher 6878 | -5/Waste | Spotted C-40 Crusher 6880 | -5/Waste | Discovered new exit (range 10) 6883 | -5/Waste | Entered Factory 7076 | -5/Factory | Identified exit to Extension 7082 | -5/Factory | Entered Extension 7234 | -5/Extension | Lost 3 parts (1n2u) 7280 | -5/Extension | Rescued A7 7394 | -5/Extension | Spotted B-75 Beast 7477 | -5/Extension | Build established: Mutant 7659 | -5/Extension | Spotted B-75 Beast 7673 | -5/Extension | Allies destroyed B-75 Beast 7742 | -5/Extension | Lost 3 allies 7773 | -5/Extension | Rescued a captive Derelict 7788 | -5/Extension | Discovered new exit (range 10) 7788 | -5/Extension | Discovered new exit (range 6) 7794 | -5/Extension | Lost 3 parts (1p1n1w) 7795 | -5/Extension | Entered Factory 7795 | -4/Factory | Evolved 2 slots: Utility x2 7914 | -4/Factory | Spotted B-86 Titan 7947 | -4/Factory | Scrapoid reinforcements arrived 7948 | -4/Factory | Lost 3 parts (2n1u) 7996 | -4/Factory | Loaded intel: 7 recycling unit locations 8168 | -4/Factory | Scrapoids reinforcements arrived? 8192 | -4/Factory | Core integrity fell below 50% 8203 | -4/Factory | Sucked down chute 8203 | -4/Factory | Entered Waste 8229 | -4/Waste | Spotted C-40 Crusher 8231 | -4/Waste | Spotted C-40 Crusher 8261 | -4/Waste | Crushed by Compactor (1 part destroyed, 2 dropped) 8268 | -4/Waste | Spotted C-40 Crusher 8281 | -4/Waste | Spotted C-40 Crusher 8287 | -4/Waste | Spotted C-40 Crusher 8287 | -4/Waste | Spotted C-40 Crusher 8294 | -4/Waste | Identified exit to Factory 8308 | -4/Waste | Warlord forces began an assault 8591 | -4/Waste | Entered Factory 8591 | -4/Factory | Accompanied by 11 allies 8710 | -4/Factory | Build established: Tank 8860 | -4/Factory | Garrison activated, responded to threat 9026 | -4/Factory | Garrison activated, responded to threat 9062 | -4/Factory | P-70 Sage assimilated allied Z6-IRZ(g) 9119 | -4/Factory | System corruption reached 10% 9164 | -4/Factory | Scrapoid reinforcements arrived 9166 | -4/Factory | Core integrity fell below 20% 9188 | -4/Factory | Found Scrap Suit 9191 | -4/Factory | Lost 10 parts (3p3n3u1w) 9471 | -4/Factory | Lost 3 parts (2n1w) 9492 | -4/Factory | Spotted B-86 Titan 9498 | -4/Factory | Destroyed by P-70 Sage with High-powered Shock Rifle Last Messages --------------- 09430_ G-67 Veteran suffers critical hit (Destroy). 09430_ G-67 Veteran destroyed. 09432_ HV Slug penetrates Fabricator. 09433_ R-10 Processor collects Imp. Medium Armor Plating. 09435_ Acquired 20 matter. 09436_ Plasma Rifle destroyed. 09439_ Antigrav System destroyed. 09440_ Cmb. Linear Gravjet destroyed. 09442_ Dropped Adv. Transmission Jammer. 09447_ Acquired 10 matter. 09456_ System corrupted: Heat flow error (+262). 09457_ P-70 Sage resets W-44 Eye, system corruption cleaned. 09457_ K-01 Serf cleans the Neutrino Reactor. 09467_ K-01 Serf cleans the Matter Pump. 09468_ K-01 Serf cleans the Nuclear Reactor. 09469_ K-01 Serf cleans the Neutrino Reactor. 09474_ Hyp. Coil Gun destroyed. 09475_ K-01 Serf cleans the Matter Pump. 09494_ System corrupted: Heat flow error (+244). [Achievement: Just Browsing] Map ----- +----------------------------------------------------+ | + ????????????? #??? | | # """ ????????????? #??? | | # """ ?? ?????????????? ???? | | # """ ????????????? ?????? | | # #???????????????????????? | | ###### """ #???????????????????????? | | """ #???????????????????????? | | """ #???????????????????????? | | """ #???????????????????????? | | / """ """ #???????????????????????? | | """ """ k#???????????????????????? | | # ### """ k#???????????????????????? | | # #?# p #########???????????????? | | # !!! #?# """ ?????????????? | | # !! = #?# """ ?????????????? | | # !! #?# """ ??????????????? | | ########/#### """ ??????????????? | | / k """ ???????????????? | | """ """ ### #### """ #????????????????? | | """ """ #?# #??# #????????????????? | | """ """ #?# #??# """ #????????????????? | | #?# #??# """ #????????????????? | | ###############/#### ! """ #????????????????? | | ??????# # #????????????????? | | ??????# # [!= #????????????????? | | ??????# # w @ [! #????????????????? | | ??????# # !! #????????????????? | | ??????# """ """ # #????????????????? | | ??????# """ """ p """ #????????????????? | | ??????# """ """ # """ +???????????????? | | ??????# # """ ##???????????????? | | ??????# """ """ + #????????????????? | | ??????# """ """ ###"" """ #????????????????? | | ??????# """ """ #?#"" """ #????????????????? | | ??????# #?#"T """ ???????????????? | | ????????############?#"" ###??????????????? | | ?????????????????????#"" #????????????????? | | ?????????????????????? ????????????????? | | ??????????????????????? ???????????????? | | ??????????????????????#######+####???????????????? | | ?????????????????????????????????????????????????? | | ?????????????????????????????????????????????????? | | ?????????????????????????????????????????????????? | | ?????????????????????????????????????????????????? | | ?????????????????????????????????????????????????? | | ?????????????????????????????????????????????????? | | ?????????????????????????????????????????????????? | | ?????????????????????????????????????????????????? | | ?????????????????????????????????????????????????? | | ?????????????????????????????????????????????????? | +----------------------------------------------------+ Best States ------------- Heat Dissipation 81 Energy Generation 38 Energy Capacity 385 Matter Stores 300 Matter Capacity 300 Sight Range 22 Robot Scan Range 16 Terrain Scan Range 24 Terrain Scan Density 10 Jamming Range 16 Power Amplification 40 Armor Coverage 300 Utility Shielding 33 Weapon Cycling 20 Melee Speed Boost 20 Phase Shifting 15 Evasion (%) 74 Melee Accuracy 16 Core Analysis 6 Armor Integrity Analysis 40 Recoil Reduction 2 Offensive Hacking 10 Defensive Hacking 10 Item Schematics ----------------- None Robot Schematics ------------------ None Fabricated ------------ Nothing Repaired ---------- Lgt. Treads | 20% | -10/Materials Lgt. Treads | 70% | -10/Materials Lgt. Assault Rifle | 67% | -10/Materials Alien Tech Used ----------------- None Achievements -------------- Below Cya! Just Browsing Party Time Challenges ------------ None Game ------ Seed BurstTeleporterNanoactuators Manual? 0 Play Time 02:43:51 Cumulative 25.8 hours Start 2025.06.12 @ 16:59:44 End 2025.06.27 @ 12:15:10 Sessions 3 Manual Loads 0 Difficulty Rogue Special Mode None Game No. 14 Rogue 14 Adventurer 0 Explorer 0 Win Type - Total 0 Types 0/0/0/0/0/0/0/0/0/0 Lore% 24 Gallery% 25 Achievement% 27 Wizard Run 0 Options --------- Layout 0 ASCII 0 Keyboard 1 Movement Numpad Keybinds 0 Fullscreen 2 Font 18/SmallcapsGlow Map View 76x50 Zoom Use 0% Tactical HUD 1 Map Filters NONE Filters NONE Steam 1 RUN: 997caf25-5b73-48ff-91c0-851f91c5eb13